bitfinex-derivatives/quotes_SOLF0:USTF0_20220108
["timestamp","ask_amount","ask_price","bid_price","bid_amount"]
[1641646877416,4.0,145.07,144.98,41.96814162]
[1641646877617,5.51674764,145.02,144.98,41.96814162]
[1641646877816,5.51674764,145.02,144.98,31.74814162]
[1641646878116,5.51674764,145.02,144.96,66.2283]
[1641646878517,5.51757776,145.0,144.92,70.5465]
[1641646878717,9.51757776,145.0,144.92,64.828]
[1641646878916,27.66479,144.96,144.92,64.828]
[1641646879117,27.66479,144.96,144.91,65.2786]
[1641646879118,27.66479,144.96,144.89,27.66479]
[1641646880117,27.66479,144.96,144.9,4.0]
[1641646880316,27.66479,144.96,144.91,5.724]
[1641646880520,27.66479,144.96,144.91,4.0]
[1641646881018,33.18300794,144.98,144.93,4.0]
[1641646881218,4.87436138,145.0,144.93,7.852]
[1641646881418,4.87436138,145.0,144.93,9.576]
[1641646881619,27.66479,145.02,144.93,9.576]
[1641646881820,27.66479,145.02,144.93,7.852]
[1641646882618,27.66479,145.02,144.93,11.852]
[1641646882819,27.66479,145.02,144.93,13.576]
[1641646883119,27.66479,145.02,144.93,9.576]
[1641646883720,33.18148563,145.02,144.93,9.576]
[1641646884220,33.18148563,145.02,144.93,1.724]
[1641646884620,38.69826893,145.02,144.92,64.8996]
[1641646885020,42.69826893,145.02,144.92,64.8996]
[1641646885220,27.66479,144.98,144.92,63.1756]
[1641646885421,34.30979,144.98,144.92,63.1756]
[1641646885821,39.8281465,144.98,144.92,63.1756]
[1641646887225,39.82793152,144.98,144.92,63.1756]
[1641646887623,39.82793152,144.98,144.92,55.33758836]
[1641646889026,33.18293152,144.98,144.92,55.33758836]
[1641646889226,5.51814152,144.98,144.92,59.33758836]
[1641646889426,6.62035089,145.01,144.93,4.0]
[1641646889628,6.62035089,145.01,144.93,11.775]
[1641646889828,6.62035089,145.01,144.93,7.775]
[1641646891128,6.62035089,145.01,144.93,11.775]
[1641646891526,6.62035089,145.01,144.93,7.775]
[1641646891727,6.62035089,145.01,144.93,1.724]
[1641646891930,12.13757529,145.01,144.93,1.724]
[1641646892729,5.51793871,144.99,144.9,1.724]
[1641646893428,27.66479,144.98,144.9,1.724]
[1641646896133,32.53915138,144.98,144.9,1.724]
[1641646896936,27.66479,144.98,144.9,1.724]
[1641646897437,27.66479,144.98,144.91,4.0]
[1641646897637,27.66479,144.98,144.91,7.574]
[1641646898337,33.18290992,144.98,144.9,1.724]
[1641646898540,45.58690992,144.98,144.85,65.5755]
[1641646898738,5.51898517,144.96,144.85,65.5755]
[1641646898940,5.51968993,144.94,144.85,65.5755]
[1641646899138,11.99668993,144.94,144.85,69.5755]
[1641646899538,27.66479,144.91,144.86,4.0]
[1641646899739,27.66479,144.91,144.86,12.73]
[1641646899940,6.62224846,144.97,144.87,4.0]
[1641646900140,4.87436138,144.96,144.86,12.73]
[1641646900539,4.87436138,144.96,144.87,4.0]
[1641646900739,4.87436138,144.96,144.88,1.725]
[1641646901142,4.87436138,144.96,144.92,4.0]
[1641646901340,15.35436138,144.99,144.94,4.0]
[1641646901542,4.87436138,144.99,144.94,4.0]
[1641646901740,4.87436138,144.99,144.93,1.724]
[1641646903045,4.87436138,144.99,144.91,29.38879]
[1641646903246,4.87436138,144.98,144.91,27.66479]
[1641646903648,32.53915138,144.98,144.89,36.28819665]
[1641646904047,4.87436138,144.95,144.89,40.28819665]
[1641646904549,4.87436138,144.95,144.89,36.28819665]
[1641646904949,4.87436138,144.95,144.89,40.28819665]
[1641646905450,4.87436138,144.95,144.9,4.0]
[1641646905948,4.87436138,144.93,144.9,4.0]
[1641646906148,14.54222531,144.96,144.92,4.0]
[1641646906449,14.54222531,144.96,144.92,7.501]
[1641646906849,77.99262531,145.02,144.93,1.724]
[1641646907051,14.54222531,145.02,144.93,72.0441]
[1641646907249,14.54222531,145.02,144.94,4.0]
[1641646907450,14.54222531,145.02,144.94,5.724]
[1641646907653,14.54222531,145.02,144.94,1.724]
[1641646907855,79.56092531,145.04,144.94,1.724]
[1641646908055,55.28471005,145.03,144.94,1.724]
[1641646908255,51.28471005,145.03,144.94,1.724]
[1641646908854,14.54222531,145.02,144.94,1.724]
[1641646909956,44.6653869,145.03,144.94,1.724]
[1641646910160,44.6653869,145.03,144.94,6.96]
[1641646910559,37.76479,145.03,144.94,6.96]
[1641646910756,27.66479,145.03,144.94,6.96]
[1641646911657,20.05797671,145.04,144.96,27.66479]
[1641646911858,5.5157514,145.04,144.97,4.0]
[1641646912058,5.5157514,145.04,144.97,7.892]
[1641646912262,10.44,145.05,145.0,4.0]
[1641646912462,14.54222531,145.06,145.0,6.527]
[1641646912663,14.54222531,145.06,145.0,8.25]
[1641646913266,14.54222531,145.06,145.0,12.25]
[1641646913464,14.54222531,145.06,145.0,10.527]
[1641646913868,27.66479,145.08,145.0,10.527]
[1641646914069,27.66479,145.08,145.0,6.527]
[1641646914269,31.66479,145.08,144.99,29.38779]
[1641646914569,5.5148863,145.07,144.99,27.66479]
[1641646914970,5.5148863,145.07,144.98,63.5721]
[1641646915972,69.87180531,145.08,144.98,63.5721]
[1641646916171,42.20701531,145.08,144.99,1.723]
[1641646916574,27.66479,145.08,144.99,1.723]
[1641646916874,37.17923548,145.08,144.99,1.723]
[1641646917374,33.17923548,145.08,144.99,1.723]
[1641646917575,27.66479,145.05,144.99,1.723]
[1641646918476,27.66479,145.05,144.98,63.5721]
[1641646919276,27.66479,145.05,144.99,1.77125777]
[1641646920376,27.66479,145.05,144.99,3.49425777]
[1641646920678,27.66479,145.05,145.01,4.0]
[1641646920875,27.66479,145.05,145.01,6.414]
[1641646921077,27.66479,145.08,145.01,6.414]
[1641646921276,17.13573302,145.11,145.01,6.414]
[1641646921476,14.54222531,145.12,145.05,4.0]
[1641646921675,14.54222531,145.12,145.05,9.685]
[1641646921881,14.54222531,145.12,145.09,27.66479]
[1641646922077,14.54222531,145.12,145.09,42.72392677]
[1641646922277,14.54222531,145.12,145.09,35.83379]
[1641646922876,14.54222531,145.12,145.09,8.169]
[1641646923076,33.17610429,145.16,145.09,8.169]
[1641646924477,33.17610429,145.16,145.08,6.89037415]
[1641646925378,4.0,145.15,145.07,63.8321]
[1641646925578,5.51237036,145.13,145.06,14.54222531]
[1641646925780,12.88237036,145.13,145.06,14.54222531]
[1641646925978,27.66479,145.1,145.04,79.46822531]
[1641646926178,36.38379,145.1,145.04,79.46822531]
[1641646927281,41.89743675,145.1,145.02,64.0306]
[1641646928184,41.89743675,145.1,145.03,1.88036978]
[1641646928385,47.41114965,145.1,145.03,1.88036978]
[1641646928985,8.719,145.1,145.03,1.88036978]
[1641646929187,68.506,145.12,145.03,10.44336978]
[1641646929387,68.506,145.12,145.04,1.723]
[1641646929888,68.506,145.12,145.04,3.60336978]
[1641646930086,68.506,145.12,145.05,27.66479]
[1641646930688,68.506,145.12,145.05,29.54515978]
[1641646930889,5.51218233,145.14,145.05,29.54515978]
[1641646931090,27.66479,145.16,145.06,1.723]
[1641646931388,33.17629418,145.16,145.05,31.26715978]
[1641646931789,33.17629418,145.16,145.05,29.38679]
[1641646932588,37.17629418,145.16,145.06,1.88019582]
[1641646933389,33.17629418,145.16,145.06,1.88019582]
[1641646933589,37.17629418,145.16,145.06,9.78819582]
[1641646933788,33.17629418,145.16,145.06,9.78819582]
[1641646934090,5.51229084,145.14,145.06,9.78819582]
[1641646934288,5.51229084,145.14,145.06,7.908]
[1641646934889,5.51304106,145.12,145.06,7.908]
[1641646935089,5.51304106,145.12,145.05,27.66479]
[1641646936091,5.51304106,145.12,145.06,1.88194658]
[1641646936292,5.51304106,145.12,145.06,8.01494658]
[1641646936992,5.51304106,145.12,145.07,1.88194658]
[1641646937692,5.51304106,145.12,145.06,1.88194658]
[1641646941895,6.61412854,145.15,145.05,1.88194658]
[1641646942095,6.61412854,145.15,145.06,27.66479]
[1641646942696,6.61412854,145.15,145.07,1.88194658]
[1641646943297,10.61412854,145.15,145.07,1.88194658]
[1641646943497,6.61412854,145.15,145.07,1.88194658]
[1641646944095,27.66479,145.13,145.07,1.88194658]
[1641646944297,33.1772592,145.13,145.06,27.66479]
[1641646944999,27.66479,145.13,145.06,31.66479]
[1641646945299,47.718364,145.16,145.06,27.66479]
[1641646945598,47.718364,145.16,145.07,1.722]
[1641646945800,47.718364,145.16,145.06,33.63579]
[1641646946199,2.98610751,145.15,145.07,1.88793275]
[1641646946801,5.51208738,145.14,145.07,1.88793275]
[1641646949101,2.99062967,145.13,145.07,1.88793275]
[1641646950102,5.51208738,145.14,145.07,1.88793275]
[1641646950303,42.20701531,145.16,145.07,1.88793275]
[1641646950504,5.51170258,145.15,145.07,1.88793275]
[1641646950904,8.502507,145.15,145.07,1.88793275]
[1641646951703,17.53302973,145.14,145.07,1.88793275]
[1641646951904,23.04516825,145.14,145.07,1.88793275]
[1641646952604,2.99080442,145.13,145.07,16.43015806]
[1641646953709,5.51213852,145.14,145.08,14.54222531]
[1641646954405,2.90356403,145.13,145.08,14.54222531]
[1641646955305,2.90356403,145.13,145.08,16.26422531]
[1641646956407,27.66479,145.14,145.09,16.43015806]
[1641646956607,27.66479,145.14,145.09,23.33215806]
[1641646956808,27.66479,145.16,145.1,4.0]
[1641646957008,79.44962531,145.17,145.09,23.33215806]
[1641646957208,79.44962531,145.17,145.1,31.27472275]
[1641646957209,14.54222531,145.17,145.1,31.27472275]
[1641646958612,2.90109472,145.17,145.11,1.88793275]
[1641646959514,2.90109472,145.18,145.11,1.88793275]
[1641646960515,2.90109472,145.19,145.11,16.43015806]
[1641646960714,2.90109472,145.19,145.12,1.722]
[1641646960918,2.90109472,145.19,145.12,9.611]
[1641646961318,2.90109472,145.19,145.13,31.66479]
[1641646961518,2.90109472,145.19,145.14,1.722]
[1641646963018,5.50934497,145.21,145.15,1.88793275]
[1641646963217,2.90109472,145.22,145.15,8.20393275]
[1641646963920,31.66479,145.23,145.15,8.20393275]
[1641646964219,31.66479,145.23,145.16,1.88793275]
[1641646964722,31.66479,145.23,145.13,29.38579]
[1641646964921,31.66479,145.23,145.13,27.66479]
[1641646965322,27.66479,145.23,145.13,27.66479]
[1641646965621,27.66479,145.23,145.13,31.66479]
[1641646965822,27.66479,145.23,145.14,5.97754717]
[1641646966022,27.66479,145.23,145.15,1.721]
[1641646966427,27.66479,145.23,145.16,6.88681519]
[1641646966626,4.8683278,145.22,145.16,6.88681519]
[1641646966826,4.8683278,145.22,145.14,8.693]
[1641646967728,57.9148812,145.25,145.15,1.97579747]
[1641646967729,4.8683278,145.24,145.15,1.97579747]
[1641646968728,5.50875734,145.23,145.15,1.97579747]
[1641646969530,4.8683278,145.24,145.14,1.97579747]
[1641646969831,8.8683278,145.24,145.15,1.721]
[1641646970032,5.50905107,145.22,145.15,1.721]
[1641646970231,5.50905107,145.22,145.14,1.97579747]
[1641646970634,5.50939091,145.21,145.14,1.97579747]
[1641646971334,33.17418091,145.21,145.14,67.82869747]
[1641646971836,33.17418091,145.21,145.14,65.8529]
[1641646973738,33.17418091,145.21,145.15,2.1363259]
[1641646976141,5.50939091,145.21,145.15,2.1363259]
[1641646980950,64.4895,145.22,145.15,2.1363259]
[1641646982252,4.8683278,145.22,145.15,3.8573259]
[1641646983152,4.8683278,145.23,145.16,2.1363259]
[1641646983651,4.8683278,145.23,145.16,29.8011159]
[1641646983852,4.8683278,145.23,145.16,27.66479]
[1641646984051,4.8683278,145.23,145.16,29.38579]
[1641646985153,4.8683278,145.23,145.17,2.1363259]
[1641646985355,4.8683278,145.23,145.17,9.1783259]
[1641646985855,4.8683278,145.23,145.18,2.1363259]
[1641646987754,4.8683278,145.24,145.18,2.1363259]
[1641646987955,4.8683278,145.24,145.19,4.0]
[1641646988156,4.8683278,145.24,145.18,68.5139259]
[1641646989357,12.79849875,145.27,145.21,14.54222531]
[1641646989658,23.17849875,145.27,145.21,21.34422531]
[1641646990659,50.84328875,145.27,145.21,21.34422531]
[1641646990857,50.84328875,145.27,145.22,2.1363259]
[1641646990858,45.97496095,145.27,145.22,2.1363259]
[1641646991659,50.84328875,145.27,145.22,2.1363259]
[1641646992660,45.97496095,145.27,145.22,2.1363259]
[1641646993361,35.59496095,145.27,145.22,2.1363259]
[1641646994162,7.93017095,145.27,145.22,2.1363259]
[1641646995262,4.8683278,145.28,145.22,2.1363259]
[1641646995462,4.8683278,145.28,145.22,67.6145259]
[1641646996565,66.3261,145.29,145.23,2.1363259]
[1641646996765,32.5331178,145.3,145.23,2.1363259]
[1641646998366,9.50656573,145.29,145.23,2.1363259]
[1641646998566,5.50656573,145.29,145.23,2.1363259]
[1641646998767,5.50656573,145.29,145.24,4.86488039]
[1641646999067,5.50656573,145.29,145.24,13.49088039]
[1641646999767,10.37489353,145.29,145.24,8.626]
[1641647000768,5.50656573,145.29,145.24,0.80080769]
[1641647001367,32.5331178,145.3,145.24,0.80080769]
[1641647002168,27.66479,145.3,145.24,5.66568808]
[1641647005774,73.5122278,145.31,145.24,5.66568808]
[1641647006170,4.8683278,145.31,145.24,5.66568808]
[1641647006371,27.66479,145.32,145.26,4.86488039]
[1641647006572,27.66479,145.32,145.27,1.72]
[1641647006873,27.66479,145.32,145.27,7.537]
[1641647007673,27.66479,145.32,145.27,12.40188039]
[1641647007873,27.66479,145.32,145.27,10.68188039]
[1641647008474,72.9405,145.34,145.27,10.68188039]
[1641647008675,10.16,145.34,145.27,10.68188039]
[1641647008877,32.5331178,145.35,145.27,10.68188039]
[1641647009075,43.0531178,145.35,145.28,1.72]
[1641647009476,38.18479,145.35,145.28,9.04665714]
[1641647010276,10.52,145.35,145.32,4.0]
[1641647010476,4.8683278,145.36,145.32,5.647]
[1641647011279,27.66479,145.39,145.32,10.51188039]
[1641647011476,31.66479,145.39,145.32,10.51188039]
[1641647011677,37.16753486,145.39,145.32,10.51188039]
[1641647012180,38.03586266,145.39,145.32,5.647]
[1641647012376,5.50313385,145.38,145.3,4.86488039]
[1641647012577,4.0,145.35,145.3,4.86488039]
[1641647012777,5.50500611,145.33,145.3,4.86488039]
[1641647014277,27.66479,145.34,145.3,4.86488039]
[1641647014480,27.66479,145.34,145.3,8.185]
[1641647017280,27.66479,145.34,145.3,13.04988039]
[1641647018982,4.8683278,145.37,145.3,13.04988039]
[1641647019182,4.8683278,145.37,145.3,80.15008039]
[1641647020283,4.8683278,145.38,145.31,7.32790329]
[1641647020884,8.8683278,145.38,145.31,7.32790329]
[1641647021185,4.8683278,145.38,145.31,4.86488039]
[1641647021383,4.8683278,145.38,145.3,78.43008039]
[1641647021384,4.8683278,145.37,145.3,78.43008039]
[1641647021584,24.4257323,145.37,145.3,78.43008039]
[1641647022186,4.8683278,145.36,145.3,73.5652]
[1641647022385,24.4257323,145.36,145.3,73.5652]
[1641647023185,115.64606794,145.39,145.3,73.5652]
[1641647023186,4.8683278,145.38,145.31,7.42046332]
[1641647023688,19.55577988,145.37,145.31,7.42046332]
[1641647024789,19.55577988,145.37,145.32,4.86488039]
[1641647025592,47.22056988,145.37,145.32,4.86488039]
[1641647026788,27.66479,145.37,145.32,4.86488039]
[1641647027292,4.8683278,145.38,145.32,4.86488039]
[1641647027493,4.8683278,145.38,145.33,4.0]
[1641647027694,4.8683278,145.38,145.37,27.66479]
[1641647027993,4.8683278,145.38,145.37,34.39779]
[1641647028395,14.54222531,145.44,145.37,34.39779]
[1641647029598,37.80479,145.45,145.38,17.09780824]
[1641647029998,27.66479,145.45,145.38,17.09780824]
[1641647030197,27.66479,145.45,145.39,4.0]
[1641647030400,27.66479,145.45,145.4,1.719]
[1641647030598,27.66479,145.45,145.4,5.959]
[1641647030798,27.66479,145.45,145.41,1.719]
[1641647034703,27.66479,145.45,145.4,7.678]
[1641647034905,27.66479,145.45,145.4,5.959]
[1641647035202,10.44,145.48,145.41,1.719]
[1641647035403,10.44,145.48,145.41,4.60387893]
[1641647036206,10.44,145.48,145.41,8.60387893]
[1641647036406,33.16312338,145.5,145.43,6.87403334]
[1641647036608,33.16312338,145.5,145.43,13.93903334]
[1641647036906,27.66479,145.5,145.43,13.93903334]
[1641647037710,27.66479,145.5,145.45,4.0]
[1641647037910,10.5,145.53,145.45,4.0]
[1641647038113,10.5,145.53,145.46,8.59061606]
[1641647038313,27.66479,145.54,145.46,14.77661606]
[1641647038511,37.94479,145.54,145.46,15.93921095]
[1641647038711,37.94479,145.54,145.47,1.718]
[1641647039914,37.94479,145.54,145.46,14.77661606]
[1641647040615,37.94479,145.54,145.46,13.05861606]
[1641647041217,27.66479,145.54,145.46,13.05861606]
[1641647042317,27.66479,145.54,145.46,18.77661606]
[1641647042518,27.66479,145.54,145.46,13.05861606]
[1641647042819,27.66479,145.54,145.46,77.88671606]
[1641647043017,27.66479,145.57,145.48,4.0]
[1641647043217,27.66479,145.57,145.49,1.717]
[1641647043418,27.66479,145.57,145.49,7.194]
[1641647043618,37.80479,145.57,145.49,7.194]
[1641647043820,27.66479,145.57,145.5,27.66479]
[1641647046022,27.66479,145.57,145.49,7.194]
[1641647046222,27.66479,145.57,145.49,5.477]
[1641647047924,27.66479,145.57,145.5,27.66479]
[1641647048126,27.66479,145.57,145.5,29.38179]
[1641647049024,27.66479,145.57,145.52,4.0]
[1641647049224,27.66479,145.57,145.52,5.603]
[1641647050324,27.66479,145.57,145.5,1.717]
[1641647050524,27.66479,145.57,145.49,66.5067]
[1641647051727,27.66479,145.57,145.49,68.2237]
[1641647053628,27.66479,145.57,145.49,72.2237]
[1641647053828,27.66479,145.57,145.49,68.2237]
[1641647056836,27.66479,145.57,145.49,75.2347]
[1641647057436,27.66479,145.57,145.52,6.86978326]
[1641647057636,27.66479,145.57,145.52,12.87978326]
[1641647059037,27.66479,145.57,145.53,2.98007992]
[1641647062640,27.66479,145.57,145.54,1.717]
[1641647063642,27.66479,145.57,145.55,2.98007992]
[1641647063843,27.66479,145.57,145.55,10.53207992]
[1641647064642,27.66479,145.57,145.56,2.98007992]
[1641647066647,19.85573692,145.57,145.56,2.98007992]
[1641647067148,19.85573692,145.57,145.55,22.09422531]
[1641647068150,19.85573692,145.57,145.56,2.98007992]
[1641647068750,27.66479,145.59,145.56,2.98007992]
[1641647068955,66.8776,145.61,145.56,17.52230523]
[1641647069150,10.24,145.62,145.56,19.23930523]
[1641647069852,10.24,145.62,145.57,2.98007992]
[1641647070251,37.90479,145.62,145.57,2.98007992]
[1641647070652,10.24,145.62,145.56,17.52230523]
[1641647071456,10.24,145.62,145.57,14.54222531]
[1641647072355,10.24,145.62,145.59,4.0]
[1641647072556,27.66479,145.64,145.59,14.24748127]
[1641647072755,37.86479,145.64,145.6,4.0]
[1641647072956,37.86479,145.64,145.59,14.24748127]
[1641647073257,27.66479,145.64,145.6,1.716]
[1641647073455,10.48,145.66,145.6,1.716]
[1641647073856,10.48,145.66,145.62,14.54222531]
[1641647074857,27.66479,145.69,145.61,2.98007992]
[1641647075458,31.66479,145.69,145.61,2.98007992]
[1641647075658,27.66479,145.69,145.6,17.52230523]
[1641647076058,31.66479,145.69,145.6,17.52230523]
[1641647076259,27.66479,145.69,145.6,17.52230523]
[1641647076958,31.66479,145.69,145.6,17.52230523]
[1641647077158,4.0,145.68,145.6,17.52230523]
[1641647077358,9.49169542,145.68,145.6,17.52230523]
[1641647077859,5.49169542,145.68,145.6,17.52230523]
[1641647078059,5.49169542,145.68,145.6,2.98007992]
[1641647078358,10.98342113,145.68,145.6,2.98007992]
[1641647078558,14.98342113,145.68,145.6,2.98007992]
[1641647079159,14.98342113,145.68,145.55,4.5849153]
[1641647079160,4.0,145.61,145.55,4.5849153]
[1641647079459,4.0,145.56,145.51,38.02257851]
[1641647079659,5.49651068,145.55,145.47,96.88133078]
[1641647079858,5.49651068,145.55,145.46,161.82853078]
[1641647080259,5.49651068,145.55,145.47,6.87167153]
[1641647080459,27.66479,145.52,145.46,163.54653078]
[1641647080658,27.66479,145.52,145.45,63.0121]
[1641647080659,33.49879,145.52,145.45,64.7301]
[1641647080858,33.49879,145.52,145.45,63.0121]
[1641647082458,27.66479,145.52,145.46,16.5767753]
[1641647082660,27.66479,145.52,145.47,1.718]
[1641647083962,27.66479,145.52,145.47,7.341]
[1641647084362,27.66479,145.54,145.47,7.341]
[1641647084863,27.66479,145.54,145.48,4.0]
[1641647085065,27.66479,145.54,145.49,1.718]
[1641647085464,27.66479,145.54,145.49,5.718]
[1641647085664,27.66479,145.54,145.49,1.718]
[1641647086066,27.66479,145.54,145.48,1.718]
[1641647087065,27.66479,145.54,145.47,1.718]
[1641647087668,27.66479,145.54,145.46,1.718]
[1641647087967,27.66479,145.54,145.46,5.718]
[1641647088168,27.66479,145.54,145.46,1.718]
[1641647088370,27.66479,145.54,145.46,16.20805157]
[1641647088569,27.66479,145.54,145.46,20.20805157]
[1641647088970,27.66479,145.54,145.46,16.20805157]
[1641647089171,27.66479,145.54,145.53,4.85004057]
[1641647089572,27.66479,145.54,145.53,11.05704057]
[1641647094977,27.66479,145.54,145.53,6.207]
[1641647095177,27.66479,145.54,145.5,1.717]
[1641647095577,27.66479,145.54,145.49,1.717]
[1641647098682,27.66479,145.54,145.49,5.717]
[1641647099084,27.66479,145.54,145.49,1.717]
[1641647100386,27.66479,145.54,145.48,53.32419253]
[1641647100585,33.79479,145.54,145.48,53.32419253]
[1641647101187,33.79479,145.54,145.47,111.04441286]
[1641647102685,33.79479,145.54,145.48,1.718]
[1641647102887,33.79479,145.54,145.47,111.04441286]
[1641647103688,27.66479,145.54,145.47,115.04441286]
[1641647103890,27.66479,145.54,145.47,111.04441286]
[1641647104290,27.66479,145.54,145.48,1.718]
[1641647104788,27.66479,145.54,145.48,7.879]
[1641647105392,27.66479,145.54,145.48,6.161]
[1641647105891,27.66479,145.54,145.47,111.04441286]
[1641647106492,27.66479,145.54,145.48,53.34838487]
[1641647108196,27.66479,145.54,145.5,38.82297742]
[1641647108796,27.66479,145.54,145.51,38.82297742]
[1641647109696,27.66479,145.54,145.5,38.82297742]
[1641647111195,4.0,145.51,145.5,10.69317742]
[1641647111395,11.129,145.51,145.5,7.742e-05]
[1641647111595,11.129,145.51,145.48,14.52540745]
[1641647111995,4.0,145.5,145.48,14.52540745]
[1641647112194,11.129,145.51,145.48,14.52540745]
[1641647112397,11.129,145.51,145.46,58.21048895]
[1641647112598,55.32958,145.47,145.46,72.83279644]
[1641647112801,55.32958,145.47,145.46,14.62230749]
[1641647113903,55.32958,145.47,145.44,14.56590071]
[1641647117508,5.49769919,145.52,145.44,14.56590071]
[1641647118112,5.49769919,145.52,145.44,16.28390071]
[1641647118510,5.49769919,145.52,145.44,1.718]
[1641647118710,5.49769919,145.52,145.45,14.59287831]
[1641647118911,27.66479,145.48,145.45,14.59287831]
[1641647121113,34.06479,145.48,145.45,14.59287831]
[1641647121814,34.06479,145.48,145.44,16.65813797]
[1641647123814,27.66479,145.48,145.44,16.65813797]
[1641647124315,4.0,145.47,145.44,14.59287831]
[1641647124513,4.0,145.46,145.44,14.59287831]
[1641647124714,9.50049307,145.45,145.42,2.06525966]
[1641647124914,59.32958,145.43,145.42,2.06525966]
[1641647125316,59.32958,145.43,145.37,67.9575]
[1641647126917,27.66479,145.4,145.37,67.9575]
[1641647127118,33.35579,145.4,145.38,1.93185941]
[1641647127517,4.0,145.39,145.31,6.87899842]
[1641647127718,5.50365097,145.36,145.29,1.719]
[1641647127918,14.14765097,145.36,145.28,6.88065504]
[1641647128122,14.14765097,145.36,145.28,66.81114399]
[1641647128918,27.66479,145.34,145.28,66.81114399]
[1641647129320,31.66479,145.34,145.28,22.04977452]
[1641647129519,27.66479,145.34,145.28,22.04977452]
[1641647130121,27.66479,145.34,145.28,8.60065504]
[1641647130321,27.66479,145.34,145.28,6.88065504]
[1641647130922,31.66479,145.34,145.28,6.88065504]
[1641647131124,27.66479,145.34,145.28,6.88065504]
[1641647133325,5.50365097,145.36,145.28,6.88065504]
[1641647133527,5.50365097,145.36,145.28,15.56365504]
[1641647134027,5.50365097,145.36,145.29,1.72]
[1641647134426,38.26769558,145.4,145.3,4.0]
[1641647134626,34.26769558,145.4,145.31,1.719]
[1641647134825,34.26769558,145.4,145.31,5.898]
[1641647135026,27.66479,145.37,145.31,5.898]
[1641647140031,27.66479,145.37,145.29,5.719]
[1641647142333,5.50401698,145.35,145.28,8.683]
[1641647142533,4.0,145.34,145.27,38.73031604]
[1641647143134,27.66479,145.31,145.24,34.54710246]
[1641647143433,27.66479,145.31,145.25,1.72]
[1641647146236,4.0,145.34,145.25,1.72]
[1641647147137,27.66479,145.32,145.25,1.72]
[1641647151741,27.66479,145.32,145.24,6.88231246]
[1641647153648,31.66479,145.32,145.24,6.88231246]
[1641647154849,31.66479,145.32,145.24,58.66450867]
[1641647155251,27.66479,145.32,145.24,58.66450867]
[1641647155651,31.66479,145.32,145.24,45.6126285]
[1641647155851,27.66479,145.32,145.26,14.59438117]
[1641647156050,31.66479,145.32,145.26,14.59438117]
[1641647156250,31.66479,145.32,145.26,20.69338117]
[1641647156450,31.66479,145.32,145.27,14.59438117]
[1641647159758,27.66479,145.32,145.27,14.59438117]
[1641647160659,31.66479,145.32,145.27,14.59438117]
[1641647161359,27.66479,145.32,145.27,14.59438117]
[1641647162361,37.17023952,145.32,145.27,14.59438117]
[1641647162562,33.17023952,145.32,145.27,14.59438117]
[1641647162761,27.66479,145.32,145.27,14.59438117]
[1641647163660,33.1700811,145.32,145.28,14.59438117]
[1641647163860,37.1700811,145.32,145.28,14.59438117]
[1641647164261,27.66479,145.29,145.28,14.59438117]
[1641647168466,27.66479,145.29,145.25,40.65081684]
[1641647168663,27.66479,145.29,145.26,38.73031604]
[1641647170165,27.66479,145.29,145.27,38.73031604]
[1641647170869,27.66479,145.32,145.27,38.73031604]
[1641647170870,27.66479,145.32,145.28,4.0]
[1641647171069,4.85004057,145.36,145.29,4.0]
[1641647171268,4.85004057,145.36,145.29,72.0319]
[1641647171969,22.38398208,145.39,145.34,14.62699201]
[1641647172468,27.66479,145.38,145.34,14.62699201]
[1641647172969,4.0,145.35,145.34,14.62699201]
[1641647173168,27.66479,145.38,145.35,14.62699201]
[1641647174069,27.66479,145.38,145.34,14.62699201]
[1641647175570,35.16179,145.38,145.34,14.62699201]
[1641647175770,39.16179,145.38,145.34,14.62699201]
[1641647176273,11.497,145.38,145.34,14.62699201]
[1641647176873,27.66479,145.36,145.34,14.62699201]
[1641647177271,27.66479,145.38,145.34,14.62699201]
[1641647177471,27.66479,145.38,145.34,22.91899201]
[1641647177671,27.66479,145.38,145.34,8.292]
[1641647178572,27.66479,145.38,145.36,14.62699201]